bitfinex/quotes_SOLUSD_20250419
["timestamp","ask_amount","ask_price","bid_price","bid_amount"]
[1745076614898,16.3438975,139.82,139.77,16.3438975]
[1745076615091,16.3438975,139.82,139.75,0.03]
[1745076615092,16.3438975,139.8,139.75,16.3738975]
[1745076615296,23.49782084,139.79,139.75,0.03]
[1745076616088,7.15392334,139.79,139.75,16.3738975]
[1745076619012,23.49703775,139.8,139.75,16.3738975]
[1745076619216,23.49703775,139.8,139.76,16.3438975]
[1745076620310,7.15272201,139.81,139.76,16.3438975]
[1745076620487,23.49661951,139.81,139.76,16.3438975]
[1745076621491,23.49661951,139.81,139.77,16.3438975]
[1745076621794,23.49661951,139.81,139.76,16.3438975]
[1745076624108,16.3438975,139.8,139.75,7.1853962]
[1745076624418,16.3438975,139.8,139.75,23.5292937]
[1745076624619,16.3438975,139.8,139.75,7.1853962]
[1745076624807,16.3438975,139.78,139.75,0.03]
[1745076625117,16.3438975,139.76,139.75,0.03]
[1745076625319,23.49902056,139.76,139.75,0.03]
[1745076627207,17.6311578,139.76,139.75,0.03]
[1745076632129,25.3716578,139.76,139.75,0.03]
[1745076633941,19.2875578,139.76,139.75,0.03]
[1745076634513,7.15512306,139.76,139.75,0.03]
[1745076634713,25.80374815,139.78,139.75,0.03]
[1745076634935,10.47603474,139.76,139.75,0.03]
[1745076635136,17.6307321,139.77,139.75,0.03]
[1745076635325,10.47603474,139.76,139.75,0.03]
[1745076638938,17.6311578,139.76,139.75,0.03]
[1745076640338,7.15409929,139.78,139.75,0.03]
[1745076640537,10.47603474,139.77,139.75,0.03]
[1745076640716,10.47603474,139.76,139.75,0.03]
[1745076641518,17.6311578,139.76,139.75,0.03]
[1745076642537,10.47603474,139.76,139.75,0.03]
[1745076642842,17.6311578,139.76,139.75,0.03]
[1745076644439,7.15512306,139.76,139.75,0.03]
[1745076644739,10.47603474,139.78,139.75,0.03]
[1745076645050,7.15417889,139.78,139.75,0.03]
[1745076645440,17.63021363,139.78,139.75,0.03]
[1745076646142,10.47603474,139.77,139.75,0.03]
[1745076647236,17.63021363,139.78,139.75,0.03]
[1745076647437,7.15256419,139.81,139.77,10.47603474]
[1745076647743,81.1,139.84,139.8,10.47603474]
[1745076648120,7.15182164,139.83,139.8,10.47603474]
[1745076649343,0.063,139.86,139.82,10.47603474]
[1745076649651,0.063,139.86,139.83,10.47603474]
[1745076649862,0.063,139.86,139.82,10.47603474]
[1745076650022,10.53903474,139.86,139.82,10.47603474]
[1745076650333,7.21323164,139.86,139.82,10.47603474]
[1745076651748,7.21323164,139.86,139.81,7.15253486]
[1745076651954,0.063,139.86,139.84,10.47603474]
[1745076655149,0.063,139.86,139.85,10.47603474]
[1745076655445,0.063,139.86,139.84,10.47603474]
[1745076655641,0.063,139.86,139.82,33.1520098]
[1745076655951,0.063,139.86,139.83,10.47603474]
[1745076657146,0.063,139.86,139.82,26.0]
[1745076657325,0.063,139.86,139.83,10.47603474]
[1745076658546,7.21300715,139.86,139.82,36.47603474]
[1745076659025,17.68904189,139.86,139.82,36.47603474]
[1745076659438,7.21300715,139.86,139.82,36.47603474]
[1745076659843,0.063,139.86,139.84,10.47603474]
[1745076660945,0.063,139.86,139.83,10.47603474]
[1745076662436,0.063,139.86,139.81,33.15233619]
[1745076662635,0.063,139.86,139.83,10.47603474]
[1745076665641,0.063,139.86,139.83,17.6275153]
[1745076665841,0.063,139.86,139.84,10.47603474]
[1745076667433,0.063,139.86,139.83,10.47603474]
[1745076668657,0.063,139.86,139.84,10.47603474]
[1745076669358,0.063,139.86,139.83,10.47603474]
[1745076669957,10.47603474,139.85,139.81,36.47603474]
[1745076670158,10.47603474,139.85,139.81,26.0]
[1745076670359,10.53903474,139.86,139.81,36.47603474]
[1745076670749,17.68904189,139.86,139.81,36.47603474]
[1745076671262,10.47603474,139.85,139.81,26.0]
[1745076671467,10.47603474,139.82,139.75,7.18541439]
[1745076671765,10.47603474,139.77,139.75,0.03]
[1745076672740,7.15512306,139.76,139.75,0.03]
[1745076673841,17.6311578,139.76,139.75,0.03]
[1745076675261,23.52462671,139.76,139.75,0.03]
[1745076677655,16.36950365,139.77,139.75,0.03]
[1745076679659,23.52462671,139.76,139.75,0.03]
[1745076683250,7.15409929,139.78,139.75,0.03]
[1745076683464,23.52360294,139.78,139.75,0.03]
[1745076684371,16.36950365,139.76,139.75,0.03]
[1745076685670,23.52462671,139.76,139.75,0.03]
[1745076687275,7.15512306,139.76,139.75,0.03]
[1745076687465,16.36950365,139.77,139.75,0.03]
[1745076687773,23.52435132,139.77,139.75,0.03]
[1745076689272,16.36950365,139.76,139.75,0.03]
[1745076691155,23.52462671,139.76,139.75,0.03]
[1745076697276,17.63451513,139.76,139.75,0.03]
[1745076700579,18.64964886,139.75,139.74,0.03]
[1745076700772,29.12904093,139.75,139.74,0.03]
[1745076700965,110.22904093,139.75,139.73,0.03]
[1745076701293,29.12904093,139.74,139.73,0.03]
[1745076702362,26.0,139.71,139.7,0.03]
[1745076702567,20.28514886,139.7,139.67,0.063]
[1745076702764,29.12904093,139.69,139.67,0.063]
[1745076703483,18.64964886,139.68,139.67,0.063]
[1745076703677,29.12904093,139.68,139.67,0.063]
[1745076704385,71.04660921,139.68,139.67,0.063]
[1745076704686,78.20583028,139.68,139.67,0.063]
[1745076705183,42.20568428,139.68,139.67,0.063]
[1745076705388,58.60249863,139.68,139.67,0.063]
[1745076705683,64.73709863,139.68,139.67,0.063]
[1745076706083,7.15922107,139.68,139.67,0.063]
[1745076706389,23.55603542,139.68,139.67,0.063]
[1745076709484,37.87556745,139.69,139.67,0.063]
[1745076709670,81.1,139.7,139.67,0.063]
[1745076709671,23.55513612,139.7,139.67,0.063]
[1745076709862,99.74964886,139.74,139.68,16.39681435]
[1745076710068,16.39681435,139.73,139.68,16.39681435]
[1745076710487,16.39681435,139.72,139.68,16.39681435]
[1745076710688,23.55347362,139.73,139.68,16.39681435]
[1745076710901,97.49681435,139.74,139.7,16.39681435]
[1745076711063,104.65305194,139.74,139.7,16.39681435]
[1745076711572,16.39681435,139.73,139.68,23.55603542]
[1745076711892,16.39681435,139.72,139.67,49.61945067]
[1745076712078,16.39681435,139.72,139.68,16.39681435]
[1745076712383,16.39681435,139.73,139.68,16.39681435]
[1745076712781,97.49681435,139.74,139.69,16.39681435]
[1745076713187,16.39681435,139.73,139.68,23.55584947]
[1745076714294,23.55379763,139.73,139.68,7.15903512]
[1745076714473,7.15698328,139.73,139.68,42.39681435]
[1745076714677,23.55379763,139.73,139.68,42.39681435]
[1745076714895,104.65316083,139.74,139.69,16.39681435]
[1745076715897,16.39681435,139.73,139.68,42.39681435]
[1745076716595,7.15695301,139.73,139.69,16.39681435]
[1745076716991,81.1,139.74,139.7,16.39681435]
[1745076717190,97.49681435,139.74,139.69,16.39681435]
[1745076717489,16.39681435,139.74,139.69,16.39681435]
[1745076717906,16.39681435,139.75,139.7,16.39681435]
[1745076718384,7.15626789,139.74,139.69,7.15829408]
[1745076718586,7.15409929,139.78,139.72,16.39681435]
[1745076718980,16.39681435,139.76,139.71,16.39681435]
[1745076719180,43.68899639,139.78,139.7,16.39681435]
[1745076719387,16.39681435,139.73,139.69,7.15829408]
[1745076719792,16.39681435,139.74,139.69,16.39681435]
[1745076720000,25.03934753,139.78,139.71,16.39681435]
[1745076720198,16.39681435,139.76,139.71,16.39681435]
[1745076720505,23.55187689,139.77,139.72,16.39681435]
[1745076720691,16.39681435,139.76,139.71,16.39681435]
[1745076721295,7.15506254,139.77,139.71,42.39681435]
[1745076721510,23.55187689,139.77,139.72,16.39681435]
[1745076722393,23.55187689,139.77,139.73,16.39681435]
[1745076722705,88.31675027,139.79,139.75,42.39681435]
[1745076723005,23.61356462,139.79,139.75,26.0]
[1745076723303,23.61356462,139.79,139.74,16.39681435]
[1745076723304,0.063,139.79,139.78,16.39681435]
[1745076723509,0.063,139.79,139.77,7.15461114]
[1745076723692,0.063,139.79,139.76,23.55173115]
[1745076724689,0.063,139.79,139.77,16.39681435]
[1745076725203,0.063,139.79,139.78,42.39681435]
[1745076725594,0.063,139.79,139.78,49.55091364]
[1745076727806,0.063,139.79,139.78,26.0]
[1745076728501,0.063,139.79,139.76,7.15500958]
[1745076728705,0.063,139.79,139.73,17.89040581]
[1745076728706,16.45981435,139.79,139.73,17.89040581]
[1745076728906,0.063,139.79,139.76,42.39681435]
[1745076729211,0.063,139.79,139.78,16.39681435]
[1745076731305,0.063,139.79,139.78,49.55091364]
[1745076731803,0.063,139.79,139.78,33.15409929]
[1745076732319,0.063,139.79,139.78,49.55091364]
[1745076734598,0.063,139.79,139.78,51.16951364]
[1745076737513,0.063,139.79,139.78,69.8191625]
[1745076737715,0.063,139.79,139.78,43.8191625]
[1745076737894,0.063,139.82,139.81,44.64964886]
[1745076738100,0.063,139.87,139.86,26.3739]
[1745076738297,0.063,139.89,139.87,18.64964886]
[1745076738624,0.063,139.92,139.9,33.14796283]
[1745076738818,0.063,139.92,139.9,49.54477718]
[1745076739198,0.063,139.92,139.9,33.14796283]
[1745076739402,0.063,139.92,139.9,49.54477718]
[1745076743209,16.45981435,139.91,139.86,7.15000715]
[1745076743521,16.39681435,139.89,139.84,16.39681435]
[1745076743828,0.063,139.91,139.83,25.80119001]
[1745076743829,16.39681435,139.9,139.87,26.0]
[1745076744030,16.39681435,139.89,139.83,7.15154115]
[1745076744209,16.39681435,139.89,139.84,16.39681435]
[1745076744406,16.39681435,139.9,139.86,26.0]
[1745076744720,16.39681435,139.88,139.83,7.15154115]
[1745076744900,16.39681435,139.88,139.84,26.0]
[1745076745307,23.54583675,139.88,139.84,26.0]
[1745076745523,23.54583675,139.88,139.82,37.9087024]
[1745076745524,16.39681435,139.87,139.82,37.9087024]
[1745076745818,16.39681435,139.85,139.8,7.15307582]
[1745076746220,16.39681435,139.86,139.81,16.39681435]
[1745076746607,16.39681435,139.87,139.82,16.39681435]
[1745076747019,16.39681435,139.87,139.82,23.54886305]
[1745076747726,23.54583675,139.88,139.83,16.39681435]
[1745076747928,23.54533289,139.89,139.84,16.39681435]
[1745076748132,0.063,139.91,139.86,26.0]
[1745076748315,0.063,139.91,139.89,42.39681435]
[1745076748509,0.063,139.91,139.89,26.0]
[1745076748829,0.063,139.91,139.9,16.39681435]
[1745076750220,0.063,139.91,139.88,26.0]
[1745076750625,0.063,139.91,139.88,42.39681435]
[1745076750932,0.063,139.91,139.88,26.0]
[1745076751430,0.063,139.91,139.88,16.39681435]
[1745076751727,0.063,139.91,139.88,23.54571621]
[1745076752625,0.063,139.91,139.87,42.39681435]
[1745076753310,0.063,139.91,139.88,16.39681435]
[1745076755421,0.063,139.91,139.88,23.54577575]
[1745076756130,0.063,139.91,139.88,16.39681435]
[1745076756311,0.063,139.91,139.88,23.54567725]
[1745076758046,0.063,139.91,139.9,16.39681435]
[1745076758344,0.063,139.91,139.9,42.39681435]
[1745076758518,0.063,139.91,139.9,61.04646321]
[1745076758717,0.063,139.91,139.9,35.04646321]
[1745076759120,0.063,139.91,139.9,42.19442604]
[1745076761442,0.063,139.91,139.9,26.0]
[1745076762011,0.063,139.91,139.9,42.39681435]
[1745076762415,0.063,139.91,139.9,26.0]
[1745076762624,0.063,139.91,139.9,42.39681435]
[1745076763231,0.063,139.91,139.9,49.54477718]
[1745076767130,0.063,139.91,139.9,42.39681435]
[1745076767331,0.063,139.91,139.9,26.0]
[1745076768437,0.063,139.91,139.9,49.54477718]
[1745076769339,0.063,139.91,139.9,68.19442604]
[1745076772144,0.063,139.91,139.9,49.54477718]
[1745076772832,0.063,139.91,139.9,68.19442604]
[1745076774545,0.063,139.91,139.9,49.54477718]
[1745076774837,0.063,139.91,139.9,26.0]
[1745076775031,0.063,139.91,139.89,7.14829549]
[1745076775226,0.063,139.91,139.9,16.39681435]
[1745076775426,0.063,139.91,139.9,42.39681435]
[1745076776141,0.063,139.91,139.9,49.54477718]
[1745076777543,0.063,139.91,139.9,42.19442604]
[1745076778219,0.063,139.92,139.9,75.06354039]
[1745076778442,0.063,139.92,139.91,32.7936287]
[1745076779129,0.063,139.93,139.92,33.1469411]
[1745076779333,0.063,139.93,139.92,49.54375545]
[1745076780719,0.063,139.93,139.92,68.19340431]
[1745076780919,0.063,139.93,139.92,49.54375545]
[1745076781125,0.063,139.93,139.92,68.19340431]
[1745076782126,0.063,139.93,139.92,49.54375545]
[1745076785946,0.063,139.93,139.92,42.19340431]
[1745076786247,0.063,139.93,139.92,58.59021866]
[1745076787660,0.063,139.93,139.92,42.19340431]
[1745076787829,0.063,139.93,139.92,49.54375545]
[1745076789837,0.063,139.93,139.92,58.59021866]
[1745076790033,0.063,139.93,139.92,141.09021866]
[1745076790353,1e-08,139.93,139.92,141.09021866]
[1745076790550,1e-08,139.94,139.93,18.64964886]
[1745076790756,1e-08,139.94,139.93,35.04646321]
[1745076791151,1e-08,139.94,139.93,42.19289356]
[1745076791347,0.063,139.95,139.93,144.69289356]
[1745076791565,0.063,139.95,139.94,35.04646321]
[1745076793236,0.063,139.95,139.94,42.19238288]
[1745076793442,0.063,139.97,139.95,38.64964886]
[1745076793758,0.063,139.97,139.96,49.86646321]
[1745076794857,0.063,139.99,139.98,44.64964886]
[1745076795170,0.063,139.99,139.98,61.04646321]
[1745076795356,0.063,139.99,139.98,68.1903409]
[1745076796564,0.063,139.99,139.98,42.39681435]
[1745076796945,0.063,139.99,139.97,7.14424023]
[1745076797144,0.063,139.99,139.98,16.39681435]
[1745076797373,0.063,139.99,139.98,42.39681435]
[1745076798269,0.063,139.99,139.98,49.54069204]
[1745076799170,0.063,139.99,139.98,68.1903409]
[1745076800072,0.063,139.99,139.98,42.39681435]
[1745076800952,0.063,139.99,139.98,26.0]
[1745076801157,6.4318,139.98,139.92,82.5]
[1745076801356,23.54163596,139.97,139.91,21.96733112]
[1745076801567,23.54163596,139.97,139.93,26.0]
[1745076801873,6.4318,139.98,139.96,16.39681435]
[1745076802866,6.4318,139.98,139.97,16.39681435]
[1745076803172,0.063,139.99,139.97,16.39681435]
[1745076803371,0.063,139.99,139.98,16.39681435]
[1745076803773,0.063,139.99,139.97,16.39681435]
[1745076803967,23.60318173,139.99,139.95,26.0]
[1745076804576,16.39681435,139.98,139.95,26.0]
[1745076804871,16.39681435,139.97,139.92,16.39681435]
[1745076805181,16.39681435,139.97,139.93,26.0]
[1745076805562,13.58109854,139.96,139.93,26.0]
[1745076805765,16.39681435,139.95,139.91,14.82]
[1745076805965,13.58109854,139.96,139.92,16.39681435]
[1745076805966,29.97791289,139.96,139.92,16.39681435]
[1745076806568,13.58109854,139.96,139.92,16.39681435]
[1745076806773,29.97791289,139.96,139.92,16.39681435]
[1745076807168,17.90221435,139.94,139.91,26.0]
[1745076807357,16.39681435,139.93,139.91,26.0]
[1745076807558,16.39681435,139.93,139.89,16.39681435]
[1745076807882,16.39681435,139.91,139.86,7.21278844]
[1745076808058,16.39681435,139.91,139.87,16.39681435]
[1745076808255,16.39681435,139.91,139.87,42.39681435]
[1745076808457,1.5054,139.94,139.91,26.0]
[1745076808877,1.5054,139.94,139.93,16.39681435]
[1745076809079,6.4362,139.96,139.93,16.39681435]
[1745076810081,6.4362,139.96,139.92,16.39681435]
[1745076811057,29.9780341,139.96,139.91,26.0]
[1745076811261,16.39681435,139.94,139.92,26.0]
[1745076811497,16.39681435,139.95,139.92,26.0]
[1745076813261,6.4362,139.96,139.92,42.39681435]
[1745076813461,6.4362,139.96,139.92,49.54369422]
[1745076814266,6.4362,139.96,139.93,16.39681435]
[1745076814979,6.4362,139.96,139.92,49.54369422]
[1745076815685,16.39681435,139.95,139.92,26.0]
[1745076815988,22.83301435,139.96,139.92,33.14690655]
[1745076816163,16.39681435,139.95,139.92,26.0]
[1745076816474,16.39681435,139.94,139.89,31.21681435]
[1745076816678,1.6387,139.93,139.88,82.5]
[1745076816857,16.39681435,139.91,139.89,26.0]
[1745076817061,7.14698522,139.92,139.89,26.0]
[1745076817274,16.39681435,139.91,139.86,23.6096332]
[1745076817702,1.6387,139.93,139.89,26.0]
[1745076817990,1.6387,139.93,139.89,42.39681435]
[1745076818166,8.78518349,139.93,139.89,42.39681435]
[1745076818367,1.6387,139.93,139.89,42.39681435]
[1745076818788,1.6387,139.93,139.9,16.39681435]
[1745076818989,1.6387,139.93,139.89,49.54516601]
[1745076819462,31.61706419,139.96,139.91,16.39681435]
[1745076820269,16.39681435,139.95,139.9,16.39681435]
[1745076820669,23.54247444,139.95,139.9,23.54471779]
[1745076821086,23.54247444,139.95,139.9,16.39681435]
[1745076821289,16.39681435,139.91,139.9,26.0]
[1745076821486,16.39681435,139.94,139.9,26.0]
[1745076821681,23.54247444,139.95,139.9,42.39681435]
[1745076821880,16.39681435,139.93,139.9,26.0]
[1745076822066,16.39681435,139.92,139.9,26.0]
[1745076822577,16.39681435,139.93,139.9,26.0]
[1745076823379,23.54331337,139.93,139.9,26.0]
[1745076825078,23.54284479,139.94,139.9,42.39681435]
[1745076826074,16.39681435,139.92,139.86,0.063]
[1745076826395,16.39681435,139.92,139.87,33.14948088]
[1745076826573,16.39681435,139.92,139.87,49.54629523]
[1745076826974,23.54403087,139.92,139.87,49.54629523]
[1745076827391,16.39681435,139.91,139.89,26.0]
[1745076827705,16.39681435,139.9,139.87,26.0]
[1745076828003,16.39681435,139.89,139.87,26.0]
[1745076828207,16.39681435,139.88,139.86,0.063]
[1745076828770,16.39681435,139.87,139.86,0.063]
[1745076828975,23.54631031,139.87,139.86,0.063]
[1745076829878,25.02003023,139.89,139.86,0.063]
[1745076830081,16.39681435,139.87,139.86,0.063]
[1745076831290,35.04646321,139.87,139.86,0.063]
[1745076831901,42.19595917,139.87,139.86,0.063]
[1745076832102,23.54631031,139.87,139.86,0.063]
[1745076834401,16.39681435,139.87,139.86,0.063]
[1745076834600,16.39681435,139.88,139.86,0.063]
[1745076835381,8.1308,139.9,139.86,16.45981435]
[1745076835581,1.6484,139.9,139.86,16.45981435]
[1745076836492,1.6484,139.9,139.86,23.60954261]
[1745076836699,16.39681435,139.91,139.87,16.39681435]
[1745076836888,16.39681435,139.91,139.86,23.60954261]
[1745076837084,6.1784,139.93,139.89,16.39681435]
[1745076837085,13.32490854,139.93,139.89,16.39681435]
[1745076837506,6.1784,139.93,139.89,16.39681435]
[1745076837889,13.32486018,139.93,139.89,16.39681435]
[1745076838095,16.39681435,139.92,139.87,26.0]
[1745076838291,16.39681435,139.92,139.87,42.39681435]
[1745076838608,29.72167453,139.93,139.88,23.54565229]
[1745076838804,29.72167453,139.93,139.86,0.063]
[1745076838805,16.39681435,139.91,139.86,0.063]
[1745076839005,16.39681435,139.88,139.86,0.063]
[1745076839211,16.39681435,139.87,139.86,0.063]
[1745076839522,41.04646321,139.87,139.86,0.063]
[1745076840404,22.39681435,139.87,139.86,0.063]
[1745076840701,29.54631031,139.87,139.86,0.063]
[1745076840889,48.19595917,139.87,139.86,0.063]
[1745076841090,57.96339101,139.87,139.86,0.063]
[1745076841710,57.96339101,139.87,139.84,0.063]
[1745076841711,75.83713091,139.87,139.84,0.063]
[1745076841896,44.81389505,139.85,139.84,0.063]
[1745076842705,51.96441346,139.85,139.84,0.063]
[1745076843305,78.12865965,139.85,139.84,0.063]
[1745076843515,51.96441346,139.85,139.84,0.063]
[1745076844614,101.40104886,139.84,139.82,0.063]
[1745076844919,51.24429505,139.83,139.82,0.063]
[1745076845829,51.24429505,139.83,139.8,0.063]
[1745076845830,26.0,139.81,139.8,0.063]
[1745076846127,26.16424619,139.79,139.78,0.063]
[1745076846615,44.81389505,139.79,139.78,0.063]
[1745076846820,51.96748257,139.79,139.78,0.063]
[1745076847518,69.85145138,139.79,139.74,0.063]
[1745076847722,26.16424619,139.75,139.74,0.063]
[1745076847897,44.81389505,139.75,139.74,0.063]
[1745076848910,44.64964886,139.74,139.72,0.063]
[1745076849111,125.91389505,139.73,139.72,1e-08]
[1745076849306,18.64964886,139.72,139.67,0.063]
[1745076849616,26.16424619,139.68,139.67,0.063]
[1745076849822,44.81389505,139.68,139.67,0.063]
[1745076850804,33.32346726,139.68,139.67,0.063]
[1745076851112,51.97311612,139.68,139.67,0.063]
[1745076852214,78.13736231,139.68,139.67,0.063]
[1745076852619,133.07311612,139.68,139.67,0.063]
[1745076853626,159.23736231,139.68,139.67,0.063]
[1745076854636,18.64964886,139.67,139.66,0.03]
[1745076854827,44.81389505,139.67,139.66,0.03]
[1745076855126,44.64964886,139.65,139.64,0.063]
[1745076855303,70.81389505,139.65,139.64,0.063]
[1745076855705,51.97567976,139.63,139.62,0.063]
[1745076856106,51.97567976,139.63,139.61,1e-08]
[1745076856107,18.64964886,139.62,139.61,1e-08]
[1745076856345,44.81389505,139.62,139.61,1e-08]
[1745076857006,77.15254124,139.62,139.61,1e-08]
[1745076857212,26.0,139.59,139.54,0.03]
[1745076857425,18.64964886,139.58,139.54,0.03]
[1745076857730,26.16424619,139.56,139.54,0.03]
[1745076857908,26.16424619,139.55,139.54,0.03]
[1745076858709,44.81389505,139.55,139.54,0.03]
[1745076859826,51.97978541,139.55,139.54,0.03]
[1745076861129,26.0,139.56,139.54,0.03]
[1745076861130,7.16555583,139.56,139.54,0.03]
[1745076861320,26.16424619,139.57,139.54,0.03]
[1745076861522,17.90570145,139.63,139.54,26.19424619]
[1745076861713,33.32816558,139.59,139.54,26.19424619]
[1745076861913,26.16424619,139.58,139.54,0.03]
[1745076862213,26.16424619,139.58,139.54,33.3604882]
[1745076862833,26.16424619,139.58,139.54,26.19424619]
[1745076863131,26.16424619,139.58,139.54,7.1963904]
[1745076863917,26.16424619,139.58,139.54,0.03]
[1745076864914,14.64,139.61,139.57,26.16424619]
[1745076865114,7.16075904,139.65,139.59,26.16424619]
[1745076865316,26.16424619,139.62,139.57,26.16424619]
[1745076865529,26.16424619,139.59,139.56,26.0]
[1745076865722,26.16424619,139.58,139.54,26.03]
[1745076866033,26.16424619,139.58,139.54,33.19631737]
[1745076866228,26.16424619,139.59,139.54,33.19631737]
[1745076866424,18.64964886,139.63,139.57,26.16424619]
[1745076866628,26.16424619,139.62,139.55,26.0]
[1745076866828,26.16424619,139.62,139.58,26.16424619]
[1745076867025,26.0,139.65,139.6,26.16424619]
[1745076867026,7.16100704,139.65,139.6,26.16424619]
[1745076867230,33.32525323,139.65,139.6,26.16424619]
[1745076867534,26.16424619,139.62,139.57,26.16424619]
[1745076867931,33.32692846,139.62,139.57,26.16424619]
[1745076870033,33.32692846,139.62,139.57,33.32908026]
[1745076870331,33.32692846,139.62,139.57,26.16424619]
[1745076870538,33.32692846,139.62,139.57,7.164795]
[1745076870721,26.16424619,139.59,139.56,26.0]
[1745076870926,26.16424619,139.59,139.54,26.19424619]
[1745076871922,26.16424619,139.59,139.54,33.36062157]
[1745076872142,33.32823307,139.59,139.54,33.36062157]
[1745076872618,33.32823307,139.59,139.54,33.40937277]
[1745076873729,33.32814113,139.59,139.55,52.16424619]
[1745076873937,26.16424619,139.62,139.57,26.16424619]
[1745076874520,26.16424619,139.61,139.57,26.16424619]
[1745076874735,33.32654385,139.62,139.58,26.16424619]
[1745076875837,33.32654385,139.62,139.57,26.16424619]
[1745076877329,33.32654385,139.62,139.56,7.1651749]
[1745076877641,33.32654385,139.62,139.57,26.16424619]
[1745076877820,33.32654385,139.62,139.56,7.1651749]
[1745076878140,33.32654385,139.62,139.57,26.16424619]
[1745076878539,33.32654385,139.62,139.55,33.16589036]
[1745076878730,33.32654385,139.62,139.57,26.16424619]
[1745076878939,26.16424619,139.61,139.55,33.16589036]
[1745076879146,26.16424619,139.61,139.56,26.16424619]
[1745076879346,114.42622571,139.63,139.58,26.16424619]
[1745076880227,26.16424619,139.61,139.56,26.16424619]
[1745076880429,26.16424619,139.62,139.57,26.16424619]
[1745076880734,114.42622571,139.63,139.58,26.16424619]
[1745076882025,26.16424619,139.62,139.57,26.16424619]
[1745076882767,26.16424619,139.59,139.54,26.24299739]
[1745076882929,26.16424619,139.6,139.56,26.16424619]
[1745076883255,26.16424619,139.62,139.58,26.16424619]
[1745076883633,7.16281068,139.61,139.57,52.16424619]
[1745076886129,97.4405,139.63,139.58,26.16424619]
[1745076886340,102.98200334,139.63,139.59,26.16424619]
[1745076886546,88.26200334,139.63,139.59,26.16424619]
[1745076886751,88.26200334,139.63,139.6,26.16424619]
[1745076887072,88.26200334,139.63,139.59,26.16424619]
[1745076887359,7.16143076,139.64,139.6,16.39948878]
[1745076887571,81.1,139.67,139.63,16.39948878]
[1745076887872,81.1,139.67,139.63,16.44823998]
[1745076888461,97.49948878,139.67,139.63,0.0487512]
[1745076888666,7.16045953,139.66,139.63,0.0487512]
[1745076889665,88.25985979,139.67,139.63,26.27449059]
[1745076889853,7.15985979,139.67,139.63,26.27449059]
[1745076891365,33.38559918,139.67,139.63,0.0487512]
[1745076892069,26.22573939,139.65,139.63,0.0487512]
[1745076892273,7.15985979,139.67,139.63,0.0487512]
[1745076892451,26.22573939,139.65,139.63,0.0487512]
[1745076892647,33.38701123,139.64,139.63,0.0487512]
[1745076892967,18.64964886,139.63,139.55,34.09613939]
[1745076893162,26.22573939,139.6,139.56,26.0]
[1745076893361,26.22573939,139.61,139.56,52.22573939]
[1745076893662,26.22573939,139.62,139.57,26.22573939]
[1745076894172,26.22573939,139.61,139.56,52.22573939]
[1745076894355,26.22573939,139.61,139.57,26.22573939]
[1745076894558,7.16332378,139.6,139.57,26.22573939]
[1745076894767,7.16332378,139.6,139.56,52.22573939]
[1745076894967,33.38906317,139.6,139.54,0.03]
[1745076895152,33.38906317,139.6,139.55,26.22573939]
[1745076895846,26.22573939,139.59,139.54,26.03]
[1745076896165,7.16435019,139.58,139.54,52.25573939]
[1745076896864,7.16435019,139.58,139.54,26.03]
[1745076897051,26.22573939,139.56,139.54,26.03]
[1745076897364,26.22573939,139.55,139.54,0.03]
[1745076897562,26.22573939,139.56,139.54,0.03]
[1745076897764,26.22573939,139.55,139.54,0.03]
[1745076898271,33.39162975,139.55,139.54,0.03]
[1745076899066,58.66497861,139.55,139.54,0.03]
[1745076899269,18.64964886,139.54,139.53,0.03]
[1745076899461,44.87538825,139.54,139.53,0.03]
[1745076900159,69.95780188,139.54,139.51,0.03]
[1745076900361,26.22573939,139.52,139.51,0.03]
[1745076900554,44.87538825,139.52,139.51,0.03]
[1745076900758,18.64964886,139.51,139.48,0.03]
[1745076901070,26.22573939,139.49,139.48,0.03]
[1745076901850,26.22573939,139.49,139.43,0.03]
[1745076901851,18.64964886,139.48,139.43,0.03]
[1745076902064,26.22573939,139.45,139.43,0.03]